Workbook

Sheet Cover Page
D1: Add company logo
N2: Version 20.1
B8: Add photo
N13: Notes:
N14: This template may require adjustments by individual operators to meet specific reporting requirements as defined in the site Permit(s)
B29: Annual Performance Report 2021
B31: Permit EPR/HP3431HK
B33: Staffordshire Energy Recovery Facility
B37: Veolia ES Staffordshire Limited
B39: Year: | C39: 2021
B41: Address: | C41: The Dell, Enterprise Drive, Four Ashes, Wolverhampton, Staffordshire, WV10 7DF
B43: Tel: | C43: 0203 567 6300
B45: Email: | C45: christine.skaramaga@veolia.com
B47: Prepared by: | C47: Christine Skaramaga | F47: Position: | G47: Midlands Region Environmental Engineer
B50: Approved by: | C50: Robert Foster | F50: Position: | G50: Facility Manager
B52: Version: | C52: 1
B54: Issue Date: | C54: 2022-01-26

Sheet Contents
A1: =+'Cover Page'!$B$29 -> Annual Performance Report 2021 | E1: =+'Cover Page'!$B$33 -> Staffordshire Energy Recovery Facility
A3: Contents | K3: Notes:
A4: Section | B4: Subject | H4: Page | K4: Section references and Page nos. to be inserted
B5: Facility Information | H5: 3 | K5: Sections and Subjects may require adjustment by individual operators to meet specific reporting requirements as defined in the sites Permit(s)
B6: Operational Summary | H6: 4
B7: Operational Data | H7: 5
B8: Performance Form 1 | H8: 6
B9: Energy Form 1 | H9: 7
B10: Permit Compliance | H10: 8
B11: Improvements | H11: 9
B12: Public Liaison | H12: 10
B13: Residue Quality - Optional | H13: 11
B14: Emissions to Water | H14: 12
B15: Emissions to Air (periodically monitored) | H15: 13
B16: Emissions to Air (continuously monitored) | H16: 14
B17: Hydrogen Chloride emissions | H17: 15
B18: Sulphur Dioxide emissions | H18: 16
B19: Oxides of Nitrogen emissions | H19: 17
B20: Total Organic Carbon emissions | H20: 18
B21: Particulate Matter emissions | H21: 19
B22: Carbon Monoxide emissions | H22: 20
A25: Version Control
A26: Section | B26: Information | H26: Date
A33: Distribution
A34: Copy | B34: Name, Role | H34: No.
A35: 1 | B35: Graham Macro, EA ERP Installations Officer | H35: 1
A43: This report is required under the Industrial Emissions Directive’s Article 55(2) requirements on reporting and public information on waste incineration plants and co-incineration plants, which require the operator to produce an annual report on the functioning and monitoring of the plant and make it available to the public.

Sheet Facility Info
A1: =+'Cover Page'!$B$29 -> Annual Performance Report 2021 | E1: =+'Cover Page'!$B$33 -> Staffordshire Energy Recovery Facility
A3: Plant Description and Design | K3: Notes:
A5: The ERF is operated by Veolia ES Staffordshire Ltd, a wholly owned subsidiary of Veolia. The plant is designed to burn predominantly residual municipal solid waste and has a capacity to process up to 340,000 tonnes annually. The facility has been built to serve Staffordshire County Council, its eight constituent Councils and its other partner authorities. The facility can generate approximately 29MW of electricity from waste. The facility uses 3.2MW and the balance is exported to the national grid. In tangible terms the electricity generated is equivalent to 66,000 homes. Technical details of the plant: - Construcions Industrielles de la Mediterranee (CNIM) - Design - Maximum Permitted Refuse throughput – 340,000 tonnes per annum - Storage capacity 4,500 tonnes - Approximately four and a half days full plant capacity - Number of tipping bays - 5 - Steam output – 64.5 tonnes of steam per hour at 400degC at 60bar - Flue gas treatment - CNIM ammonia injection for the reduction of NOx, dry lime injection for the removal of acid gases, activated carbon injection for removal of metals and dioxins followed by high performance bag filters for removal of particulates, dispersal via two 80 metre high stacks - Maximum energy generating capacity 29MW The ERF is regulated by the Environment Agency and is certified in compliance with: - ISO 9001:2008 - ISO 14001:2004 - ISO 45001:2018 | K5: Include summary of plant design, design capacity, no. of combustion lines, electrical and heat capacity and any other general information that descibes the facility, its location and purpose
A25: Summary of Operational Processes and Procedures
A27: All gaseous emissions generated during the combustion process pass through an extensive flue gas cleaning process which starts in the boiler directly above the furnace with injected ammonia to reduce the levels of oxides of nitrogen. After the boiler, super heater and economiser the gases are cooled to approximately 150 degrees Celsius. Activated carbon is added to remove metals and dioxins and lime is added to remove acidic gases such as SO2 and HCl. Most of this reaction occurs in the bag filters where particulates are removed and APCr is formed. There is recirculation of APC where the used lime and carbon is recirculated further to remove chlorinated gases via a recirculation silo. This secondary reactant is recirculated back to the original process via a lab loop. The cleaned gasses are finally released into the atmosphere through the chimney after the bag house. In compliance with the IED and EPR Permit, the flue gasses are continuously monitored using MCertS accredited equipment. In addition to the continuous monitoring, and extractive sampling campaign is undertaken twice a year by an approved service supplier. The organisation used for analysis and monitoring is accredited by the United Kingdom Accreditation Service (UKAS) and the Environment Agency's Monitoring Certification Scheme (MCertS). Through the process there is continuous emissions monitoring of six main pollutants with ELVs using MCertS approved instruments. The pollutants measured in this way comprise: particulate matter (total), total organic carbon, carbon monoxide, sulphur dioxide, hydrogen chloride and oxides of nitrogen. Staffordshire ERF has an experienced Veolia management team from other existing plants. The plant has been designed using proven technology and experience and is performing well. The plant supports our company ethos, as we operate 10 facilities in the UK. Reliable environmental controls and a robust management system ensure that compliance with the Industrial Emissions Directive and EPR Permit. Veolia staff are aware of the environmental impacts of their work and exercise a high standard of housekeeping. Training and competency of staff is controlled by the Veolia Business Management System. The Management System covers training, awareness and competence. The company identifies the training requirements of its employees and provides suitable resources to ensure they have the required knowledge, skills and expertise to carry out their duties. | K27: Include summary of key processes and procedures such as (but not limited to); waste reception, control rooms, grate, bed and bolier, energy & heat generation, cooling systems, residue management, emission controls, health and safety systems, maintenance

Sheet Operational Summary
A1: =+'Cover Page'!$B$29 -> Annual Performance Report 2021 | E1: =+'Cover Page'!$B$33 -> Staffordshire Energy Recovery Facility
A3: Summary of Plant Operations and Maintenance during the reporting year | K3: Notes:
A5: Plant outage Boiler cleaning NDT surveys Full grate overhaul Main lube oil filters changed Manual isolation valves replaced Boiler pressure parts, headers & tubes replaced SRVs overhauled, drum & superheater Stainers opened up, cleaned & replaced where necessary Refractory inspection & repairs Instrument calibrations ID fan bearings replaced Primary & secondary air fan bearings replaced Final economiser grit blasted ACC clean Feed pump no.3 overhauled Turbine borescope examination Air ejector nozzles removed & inspected | K5: Include summary of key operational and/or mainteanance activity undertaken in the year, such as any major component upgrades and/or replacements
A29: Summary of Residue Handling for the reporting year
A31: The plant has undergone rigorous testing to prove that the IBA is non-hazardous. The IBA is of a consistently high standard and there have been no failures in the last 24 samples. IBA is transported to Blue Phoenix in Castle Bromwich, where it is reprocessed into a number of different graded aggregates. Metals are further extracted from the process and recycled. In addition to Dioxins/Furans and dioxin-like PCB's, Total Organic Carbon, metals tested in IBA are Antimony, Cadmium, Thallium, Mercury, Lead, Chromium, Copper, Manganese, Nickel, Arsenic, Cobalt, Vanadium, Zinc and their compounds. APC residue is the fine particulate matter that is removed at the end of the gas cleansing process. It contains residues from the waste gas and the reactants used to treat the gas. APC is captured in the bag house filters in the plant before the gas is emitted and dispersed through the ERFs two 80m stacks. The APC from the Staffordshire ERF is sent to another Veolia facility for use in their treatment facility, Empire Works, or, for permanent storage at Minosus. | K31: Include in here a summary of residue handling regimes and destinations

Sheet Operational Data
A1: =+'Cover Page'!$B$29 -> Annual Performance Report 2021 | E1: =+'Cover Page'!$B$33 -> Staffordshire Energy Recovery Facility
A3: Operational Data | K3: Notes:
A4: Plant Size | B4: 340000 | D4: tonnes pa | F4: MWth | G4: 29 | H4: MWe | K4: * - RDF to include SRF
A5: No. of combustion lines | B5: 2 | D5: No. of Turbines: | F5: 1 | K5: ** - CHP plants only
K6: 2020 updates include; heat in MWh, water in Litres, NCV in MJ/kg
A7: Waste types received | B7: Unit | C7: Q1 | D7: Q2 | E7: Q3 | F7: Q4 | G7: Year Total | H7: %
A8: Household / Local Authority | B8: tonnes | C8: 83840.47 | D8: 73787.42 | E8: 86591.89 | F8: 85342.69 | G8: =SUM(C8:F8) -> 329562.47 | H8: =IF(G8>0,G8/$G$18,"-") -> 0.9991837049 | K8: Availabiity Definition: 'the availability of a line is to be calculated by the number of hours the line reported Continuously Monitored emission levels to the Regulator through the calendar year divided by the total number of hours in that year. The overall plant availability is calculated as the Mean of all lines in the plant. For clarity this includes periods of Other Than Normal Operating Conditions (OTNOC) and abnormal operation.' Rationale: The primary function of an Energy from Waste facility is the disposal of waste. It follows therefore that the availability of a plant is determined by the period of time a facility spends undertaking this activity.
A9: Commercial & Industrial | C9: 86 | D9: 79.34 | E9: 75.2 | F9: 0 | G9: =SUM(C9:F9) -> 240.54 | H9: 0.0007292810021
A10: Hazardous | G10: 0 | H10: -
A11: Clinical | C11: 18.54 | D11: 7.74 | E11: 2.42 | F11: 0 | G11: 28.7 | H11: 8.701407151e-05
A12: Waste wood (biomass) | G12: 0 | H12: -
A13: Refuse Derived Fuel * - H'hold/LA | G13: =SUM(C13:F13) -> 0 | H13: -
A14: Refuse Derived Fuel * - C&I | G14: 0 | H14: -
A15: Other [Please specify] | G15: 0 | H15: -
A16: Other [Please specify]
A17: Other [Please specify]
A18: Total waste received | C18: =SUM(C8:C17) -> 83945.01 | D18: =SUM(D8:D17) -> 73874.5 | E18: =SUM(E8:E17) -> 86669.51 | F18: =SUM(F8:F17) -> 85342.69 | G18: =SUM(G8:G17) -> 329831.71 | H18: =IF(G18>0,G18/$G$18,"-") -> 1
A19: Rejected Waste | G19: =SUM(C19:F19) -> 0 | H19: =IF(G19>0,G19/$G$18,"-") -> -
A20: Unprocessed waste transferred out | G20: =SUM(C20:F20) -> 0 | H20: =IF(G20>0,G20/$G$18,"-") -> -
A21: Total waste combusted | C21: 87066 | D21: 73396.5 | E21: 89653.1 | F21: 88833 | G21: =SUM(C21:F21) -> 338948.6 | H21: =IF(G21>0,G21/$G$18,"-") -> 1.027641035
A23: Energy Usage / Export | B23: Unit | C23: Q1 | D23: Q2 | E23: Q3 | F23: Q4 | G23: Year Total | H23: KWh/te
A24: Power Generated | B24: MWh | C24: 51586.9 | D24: 48751.1 | E24: 58471.8 | F24: 58505 | G24: =SUM(C24:F24) -> 217314.8 | H24: =IF(G24>0,G24*1000/$G$21,"-") -> 641.1438194
A25: Power Exported | C25: 45597 | D25: 41095 | E25: 51983 | F25: 52064 | G25: =SUM(C25:F25) -> 190739 | H25: =IF(G25>0,G25*1000/$G$21,"-") -> 562.737241
A26: Power Used on site | C26: =(C24-C25)+C27 -> 6044.9 | D26: =(D24-D25)+D27 -> 7834.1 | E26: 6513.8 | F26: 6473 | G26: =SUM(C26:F26) -> 26865.8 | H26: =IF(G26>0,G26*1000/$G$21,"-") -> 79.26216541
A27: Power Imported | C27: 55 | D27: 178 | E27: 25 | F27: 32 | G27: 290 | H27: =IF(G27>0,G27*1000/$G$21,"-") -> 0.8555869533
A28: Parasitic Load | B28: % | C28: =IF(C24>0,1-C25/(C24+C27),"-") -> 0.117054175 | D28: =IF(D24>0,1-D25/(D24+D27),"-") -> 0.160111263 | E28: =IF(E24>0,1-E25/(E24+E27),"-") -> 0.1113530997 | F28: =IF(F24>0,1-F25/(F24+F27),"-") -> 0.1105796334 | G28: =IF(G24>0,1-G25/(G24+G27),"-") -> 0.123461431
A29: Thermal Energy Produced ** | B29: MWh | G29: =SUM(C29:F29) -> 0 | H29: =IF(G29>0,G29*1000/$G$21,"-") -> -
A30: Thermal Energy Exported ** | G30: 0 | H30: =IF(G30>0,G30*1000/$G$21,"-") -> -
A31: R1 value | G31: 0.73
A33: Waste Disposal & Recovery | B33: Unit | C33: Q1 | D33: Q2 | E33: Q3 | F33: Q4 | G33: Year Total | H33: % inputs
A34: APC Residues - produced | B34: tonnes | C34: 2035.2 | D34: 1748.7 | E34: 2024.6 | F34: 2229.58 | G34: =SUM(C34:F34) -> 8038.08 | H34: =IF(G34>0,G34/$G$21,"-") -> 0.02371474613
A35: IBA - produced | C35: 15910 | D35: 14727.9 | E35: 17687.1 | F35: 16556.91 | G35: 64881.91 | H35: 0.1914210886
A36: Metals recycling | C36: 1515.3 | D36: 1199.3 | E36: 1229.1 | F36: 1397.48 | G36: =SUM(C36:F36) -> 5341.18 | H36: 0.01575808249
A37: Interceptor waste | C37: 76.46 | E37: 124.1 | F37: 0 | G37: =SUM(C37:F37) -> 200.56 | H37: 0.0005917121357
A38: Other | C38: 0 | D38: 0 | E38: 0 | F38: 0 | G38: 0 | H38: -
A39: Other | C39: 0 | D39: 0 | E39: 0 | F39: 0 | G39: 0 | H39: -
A41: Raw Material Usage | B41: Unit | C41: Q1 | D41: Q2 | E41: Q3 | F41: Q4 | G41: Year Total | H41: kg or Ltr /te
A42: Mains Water | B42: m3 | C42: 11605 | D42: 11754 | E42: 14875 | F42: 13049 | G42: =SUM(C42:F42) -> 51283 | H42: =IF(G42>0,G42*1000/$G$21,"-") -> 151.3002266
A43: Other Water | B43: m3 | G43: 0 | H43: =IF(G43>0,G43/$G$21,"-") -> -
A44: Ammonia | B44: kgs | C44: 275100 | D44: 223000 | E44: 275100 | F44: 273500 | G44: 1046700 | H44: 3.088078841
A45: Urea | B45: kgs | G45: =SUM(C45:F45) -> 0 | H45: -
A46: Activated Carbon | B46: kgs | C46: 22800 | D46: 16400 | E46: 19300 | F46: 22200 | G46: 80700 | H46: 0.238089197
A47: Lime / hydrated lime | B47: kgs | C47: 1065100 | D47: 939800 | E47: 1013300 | F47: 1116400 | G47: 4134600 | H47: 12.19830971
A48: Fuel oil | B48: ltrs | C48: 123140.5 | D48: 113571.3 | E48: 41956.5 | F48: 69788 | G48: 348456.3 | H48: 1.028050566
A49: Gas | B49: cf | C49: 0 | D49: 0 | E49: 0 | F49: 0 | G49: 0
A50: Other | C50: 0 | D50: 0 | E50: 0 | F50: 0 | G50: 0
A52: Summary | B52: Line/Unit | C52: Q1 | D52: Q2 | E52: Q3 | F52: Q4 | G52: Year Total | J52: Hrs in year
A53: Availability of waste combustion by line, hrs | B53: 1 | C53: 2076 | D53: 1762 | E53: 2093.5 | F53: 2162.5 | G53: =SUM(C53:F53) -> 8094 | H53: =G53/$J$53 -> 0.9239726027 | J53: 8760
B54: 2 | C54: 2037 | D54: 1730 | E54: 2201 | F54: 2101.5 | G54: 8069.5 | H54: =G54/$J$53 -> 0.9211757991
B55: 3 | G55: 0 | H55: =G55/$J$53 -> 0
B56: 4 | G56: 0 | H56: 0
B57: 5 | G57: =SUM(C57:F57) -> 0 | H57: 0
A58: Overall Availability, mean avg. of all lines, hrs | C58: =AVERAGE(C53:C54) -> 2056.5 | D58: =AVERAGE(D53:D54) -> 1746 | E58: =AVERAGE(E53:E54) -> 2147.25 | F58: =AVERAGE(F53:F54) -> 2132 | G58: =AVERAGE(G53:G54) -> 8081.75 | H58: 0.9225742009
A59: Hours of turbine operations, hrs | B59: 1 | C59: 2142.4 | D59: 1944.2 | E59: 2200.2 | F59: 2188.7 | G59: 8475.5 | H59: 0.9675228311
A60: Hours of turbine operations, hrs | B60: 2 | G60: 0 | H60: x %
A61: Hours of heat / steam export | G61: 0 | H61: =IF(B61>0,G60/J53,"n/a") -> n/a
A62: Net Calorific Value of waste | B62: MJ/kg | H62: -
A63: Abnormal Events | B63: qty. | G63: 0 | H63: =IF(G63>0,"yes","no") -> no
A64: Abnormal operation | B64: hours | G64: 0 | H64: =+(G64)/J53 -> 0
A65: Permit Breaches | B65: qty. | G65: 0 | H65: =IF(G65>0,"yes","no") -> no

Sheet Perf. Form 1
A1: =+'Cover Page'!C39 -> 2021 | B1: Annual Reporting Performance Form 1
A3: =+'Cover Page'!B31 -> Permit EPR/HP3431HK | F3: Operator: | G3: Veolia ES Staffordshire Limited
A4: Facility: | B4: =+'Cover Page'!B33:I33 -> Staffordshire Energy Recovery Facility | F4: Form: | G4: Performance 1
A6: Reporting Period from: | D6: 2021-01-01 | F6: to: | G6: 2021-12-31
A8: =+A1 -> 2021 | B8: Annual Reporting of Waste Disposal and Recovery
A9: Waste Description | C9: Disposal Route(s) | E9: Disposal Tonnes | G9: Recovery Tonnes | I9: % / tonne of waste incinerated
A10: 1) Hazardous Wastes
A11: APC Residues | C11: D09 / D12 | E11: ='Operational Data'!G34 -> 8038.08 | I11: =IF((E11+G11)>0,(E11+G11)/'Operational Data'!$G$21, "-") -> 0.02371474613
A12: IBA | I12: =IF((E12+G12)>0,(E12+G12)/'Operational Data'!$G$21, "-") -> -
A13: Interceptor waste | C13: D09 | E13: ='Operational Data'!G37 -> 200.56 | I13: =IF((E13+G13)>0,(E13+G13)/'Operational Data'!$G$21, "-") -> 0.0005917121357
I14: =IF((E14+G14)>0,(E14+G14)/'Operational Data'!$G$21, "-") -> -
A15: Total Hazardous Waste | E15: =SUM(E11:F14) -> 8238.64 | G15: =SUM(G11:H14) -> 0 | I15: =IF((E15+G15)>0,(E15+G15)/'Operational Data'!$G$21, "-") -> 0.02430645827
A17: 2) Non-Hazardous Wastes
A18: IBA | C18: R05 | G18: ='Operational Data'!G35 -> 64881.91 | I18: =IF((E18+G18)>0,(E18+G18)/'Operational Data'!$G$21, "-") -> 0.1914210886
A19: Ferrous Metal | C19: R04 | G19: ='Operational Data'!G36 -> 5341.18 | I19: =IF((E19+G19)>0,(E19+G19)/'Operational Data'!$G$21, "-") -> 0.01575808249
A20: Process Water | I20: =IF((E20+G20)>0,(E20+G20)/'Operational Data'!$G$21, "-") -> -
I21: =IF((E21+G21)>0,(E21+G21)/'Operational Data'!$G$21, "-") -> -
I22: =IF((E22+G22)>0,(E22+G22)/'Operational Data'!$G$21, "-") -> -
A23: Total Non-Hazardous Waste | E23: =SUM(E18:F22) -> 0 | G23: =SUM(G18:H22) -> 70223.09 | I23: =IF((E23+G23)>0,(E23+G23)/'Operational Data'!$G$21, "-") -> 0.2071791711
A24: TOTAL WASTE | E24: =+E23+E15 -> 8238.64 | G24: =+G23+G15 -> 70223.09 | I24: =IF((E24+G24)>0,(E24+G24)/'Operational Data'!$G$21, "-") -> 0.2314856294
A26: Operator’s comments :
A31: =+A1 -> 2021 | B31: Annual Reporting of Water and Other Raw Material Usage
A32: Raw Material | E32: Usage | G32: Unit | H32: Specific Usage | J32: Unit
A33: Mains Water | E33: =+'Operational Data'!G42 -> 51283 | G33: m3 | H33: =IF(E33>0,E33/'Operational Data'!$G$21,"-") -> 0.1513002266 | J33: m3/te
A34: Total Water | E34: =+'Operational Data'!G43+'Operational Data'!G42 -> 51283 | G34: m3 | H34: =IF(E34>0,E34/'Operational Data'!$G$21,"-") -> 0.1513002266 | J34: m3/te
A35: Urea / Ammonia | E35: =+'Operational Data'!G44 -> 1046700 | G35: kg | H35: =IF(E35>0,E35/'Operational Data'!$G$21,"-") -> 3.088078841 | J35: kg/te
A36: Activated Carbon | E36: =+'Operational Data'!G46 -> 80700 | G36: kg | H36: =IF(E36>0,E36/'Operational Data'!$G$21,"-") -> 0.238089197 | J36: kg/te
A37: Lime / hydrated lime / Sodium Bicarb. | E37: =+'Operational Data'!G47 -> 4134600 | G37: kg | H37: =IF(E37>0,E37/'Operational Data'!$G$21,"-") -> 12.19830971 | J37: kg/te
A39: Operator’s comments :
A43: =+A31 -> 2021 | B43: Annual Reporting of other performance indicators
A44: Parameter | C44: Results by Line
C45: A1 | D45: A2 | E45: A3 | F45: A4 | G45: A5 | I45: Turbine 1 | J45: Turbine 2
A46: Operating hours for the year, hours | C46: ='Operational Data'!G53 -> 8094 | D46: ='Operational Data'!G54 -> 8069.5 | I46: ='Operational Data'!G59 -> 8475.5
A47: Number of periods of abnormal operation, qty.
A48: Cumulative hours of abnormal operation for this year, hours
A50: Operator’s comments :
A54: Signed: | B54: Robert Foster | G54: Date: | H54: 2022-01-26

Sheet Energy Form 1
A1: =+'Cover Page'!C39 -> 2021 | B1: Annual Reporting of Energy Usage/Export
A3: =+'Cover Page'!B31 -> Permit EPR/HP3431HK | F3: Operator: | G3: Veolia ES Staffordshire Limited
A5: Facility: | B5: =+'Cover Page'!B33:I33 -> Staffordshire Energy Recovery Facility | F5: Form: | G5: Energy 1
A7: Reporting Period from: | D7: =+'Perf. Form 1'!D6:E6 -> 2021-01-01 | F7: to: | G7: =+'Perf. Form 1'!G6:H6 -> 2021-12-31
A9: Energy Source | D9: Energy Usage | F9: Unit | G9: Specific Usage (KWh/tonne incinerated
A10: Electricity Produced | D10: =+'Operational Data'!G24 -> 217314.8 | F10: MWh | G10: =+'Operational Data'!H24 -> 641.1438194
A11: Electricity Imported | D11: =+'Operational Data'!G27 -> 290 | F11: MWh | G11: =+'Operational Data'!H27 -> 0.8555869533
A12: Electricity Exported | D12: =+'Operational Data'!G25 -> 190739 | F12: MWh | G12: =+'Operational Data'!H25 -> 562.737241
A13: Gas Oil | D13: ='Operational Data'!G48 -> 348456.3 | F13: ltrs | G13: ='Operational Data'!H48 -> 1.028050566
A14: Steam/hot water exported | D14: =+'Operational Data'!G30 -> 0 | F14: GWh | G14: =+'Operational Data'!H30 -> -
A18: Operator’s comments :
A29: Signed: | B29: Robert Foster | G29: Date: | H29: 2022-01-26

Sheet Permit Compliance
A1: =+'Cover Page'!$B$29 -> Annual Performance Report 2021 | E1: =+'Cover Page'!$B$33 -> Staffordshire Energy Recovery Facility
A3: Summary of Permit Compliance
A5: Compliance with permit limits for continuously monitored pollutants
A7: The plant met its emission limits as shown in the table below:
A8: Substance | C8: Percentage time compliant during operation | L8: Notes:
C9: Half-hourly limit | F9: Daily limit | L9: Report to 2 decimal places, i.e. xx.xx% Please provide a brief summary of each notification or non-compliance in the table (rather than just referring to notifications that were sent to the Regulator).
A10: Particulates | C10: 1 | F10: 1
A11: Oxides of nitrogen | C11: 1 | F11: 1
A12: Sulphur dioxide | C12: 1 | F12: 1
A13: Carbon monoxide | C13: 100% 95% of 10-min averages | F13: 1
A14: Total organic carbon | C14: 1 | F14: 1
A15: Hydrogen chloride | C15: 1 | F15: 1
A16: Hydrogen fluoride | C16: 1 | F16: 1
A18: Summary of any notifications or non-compliances under the permit
A19: Date | B19: Summary of notification or non-compliance [including Line/Reference] | E19: Reason | H19: Measures taken to prevent reoccurrence
A24: Summary of any complaints received and actions to taken to resolve them.
A25: Date | B25: Summary of complaint [including Line/Reference] | E25: Reason * | H25: Measures taken to prevent reoccurrence
E31: * including whether substantiated by the operator or the EA

Sheet Improvements
A1: =+'Cover Page'!$B$29 -> Annual Performance Report 2021 | E1: =+'Cover Page'!$B$33 -> Staffordshire Energy Recovery Facility
A3: Summary of Plant Improvements
A5: Summary of any efficiency improvements that have been completed within the year.
A6: n/a
A16: Summary of any permit improvement conditions that have been completed within the year and the resulting environmental benefits.
A17: All improvement conditions have been previously completed.
A27: Summary of any changes to the plant or operating techniques which required a variation to the permit and a summary of the resulting environmental impact.
A28: n/a
A38: Summary of any other improvements made to the plant or planned to be made and a summary of the resulting environmental benefits.
A39: n/a

Sheet Public Liasion
A1: =+'Cover Page'!$B$29 -> Annual Performance Report 2021 | E1: =+'Cover Page'!$B$33 -> Staffordshire Energy Recovery Facility
A3: Details of Public & Stakeholder Liaison
A5: Summary of events held during the reporting year.
A6: Date | C6: Description
A7: Monthly | C7: Contract meeting with Staffordshire W2R partnership (held online due to COVID-19)
A9: Quarterly | C9: W2R partners meetings (continue to be held online due to COVID-19)
C11: Three school visits on site.
A14: List of events planned for next year
A15: Date | C15: Description
A16: Monthly | C16: Contract meeting with Staffordshire W2R partnership
A18: Quarterly | C18: W2R partners meetings
A27: If you wish to be involved in the public liaison programme, please contact 0203 567 6300

Sheet Residue Quality
A1: =+'Cover Page'!$B$29 -> Annual Performance Report 2021 | G1: =+'Cover Page'!$B$33 -> Staffordshire Energy Recovery Facility
A3: Residue Quality Monitoring Requirements
A5: Summary of monitoring undertaken and compliance
A6: As per permit requirements
A13: Commentary on any specific events
A14: Date & Event | C14: Description
A27: Residue Quality Monitoring Results
A28: Parameter (unit) | C28: Limit | D28: Normal Operation
D29: Bottom ash | I29: APC Residues
D30: Q1 | E30: Q2 | F30: Q3 | G30: Q4 | H30: Average
A31: Loss on Ignition (average %) | C31: <5%
A32: Total Organic Carbon (average %) | C32: <3% | D32: 2.3 | E32: 1.1 | F32: 1.6 | G32: 1.2 | H32: =AVERAGE(D32:G32) -> 1.55
A33: No. of Assessments Undertaken | C33: ---
A34: No. of Hazardous Results | C34: --- | D34: 0
A36: Comments :

Sheet Water
A1: =+'Cover Page'!$B$29 -> Annual Performance Report 2021 | F1: =+'Cover Page'!$B$33 -> Staffordshire Energy Recovery Facility
A3: Emissions to Water
A5: Summary of monitoring undertaken and compliance
A6: As per Severn Trent discharge consent of trade effluent to public foul sewer
A13: Commentary on any specific events
A14: Date & Event
A22: Emissions to Water / Sewer
A23: Parameter | C23: Monitoring Frequency | F23: Limit | G23: Target | H23: Max. | I23: Average
A24: pH | C24: Periodic | F24: 6-10 | H24: 8.5 | I24: 8.5
A25: COD | C25: Periodic | F25: 800 | H25: 38 | I25: 38
A26: Suspended Solids | C26: Periodic | F26: 400 | H26: 9 | I26: 9

Sheet Air (periodic)
A1: =+'Cover Page'!$B$29 -> Annual Performance Report 2021 | E1: =+'Cover Page'!$B$33 -> Staffordshire Energy Recovery Facility
A3: Emissions to Air (periodically monitored)
A5: Summary of monitoring undertaken, standards used and compliance | N5: Notes:
A6: As per permit requirements | N6: Template may require adjustment for any bespoke monitoring requirements of permit.
A9: Results of emissions to air that are periodically monitored
A10: Substance | C10: Ref. Period | D10: Emission Limit Value | J10: Average | N10: User to add additional tables as necessary, depending on whether quarterly or bi-annual reporting is required for the compliance year
F11: A1 (Q1/2) | G11: A2 (Q1/2) | H11: A1 (Q3/4) | I11: A2 (Q3/4) | J11: A1 | K11: A2
A12: Hydrogen fluoride | C12: 1 hr | D12: 2 mg/m3 | F12: 0.07 | G12: 0.04 | H12: 0.01 | I12: 0.07 | J12: =AVERAGE(F12,H12) -> 0.04 | K12: =AVERAGE(G12,I12) -> 0.055
A13: Cd and Th and their compounds | C13: 6-8hrs | D13: 0.05 mg/m3 | F13: 0.00056 | G13: 0.00053 | H13: 0.00056 | I13: 0.00051 | J13: =AVERAGE(F13,H13) -> 0.00056 | K13: =AVERAGE(G13,I13) -> 0.00052
A14: Hg and its compounds | C14: 6-8hrs | D14: 0.05 mg/m3 | F14: 0.00082 | G14: 0.0022 | H14: 0.00056 | I14: 0.0006 | J14: 0.00069 | K14: 0.0014
A15: Sb, As, Pb, Cr, Co, Cu, Mn, Ni, V and their compounds | C15: 6-8hrs | D15: 0.5 mg/m3 | F15: 0.018 | G15: 0.014 | H15: 0.03 | I15: 0.02 | J15: 0.024 | K15: 0.017
A16: Dioxins & Furans (I-TEQ) | C16: 6-8hrs | D16: 0.1 ng/m3 | F16: 0.022 | G16: 0.012 | H16: 0.005 | I16: 0.0064 | J16: 0.0135 | K16: 0.0092
A17: PCBs (WHO-TEQ Humans / Mammals) | C17: 6-8hrs | D17: None set ng/m3 | F17: 0.0046 | G17: 0.0026 | H17: 0.0016 | I17: 0.0023 | J17: 0.0031 | K17: 0.00245
A18: PCBs (WHO-TEQ Fish) | C18: 6-8hrs | D18: None set ng/m3 | F18: 0.00025 | G18: 0.00014 | H18: 8.9e-05 | I18: 0.00012 | J18: 0.0001695 | K18: 0.00013
A19: PCBs (WHO-TEQ Birds) | C19: 6-8hrs | D19: None set ng/m3 | F19: 0.012 | G19: 0.0066 | H19: 0.006 | I19: 0.0051 | J19: 0.009 | K19: 0.00585
A20: Dioxins & Furans (WHO-TEQ Humans / Mammals) | C20: 6-8hrs | D20: None set ng/m3 | F20: 0.025 | G20: 0.014 | H20: 0.0052 | I20: 0.0073 | J20: 0.0151 | K20: 0.01065
A21: Dioxins & Furans (WHO-TEQ Fish) | C21: 6-8hrs | D21: None set ng/m3 | F21: 0.024 | G21: 0.013 | H21: 0.0048 | I21: 0.0071 | J21: 0.0144 | K21: 0.01005
A22: Dioxins & Furans (WHO-TEQ Birds) | C22: 6-8hrs | D22: None set ng/m3 | F22: 0.034 | G22: 0.019 | H22: 0.0074 | I22: 0.0094 | J22: 0.0207 | K22: 0.0142
A23: Nitrous Oxide (N2O) | C23: 1hr | D23: None set ng/m4 | F23: 0.22 | G23: 0.21 | H23: 0.23 | I23: 0.94 | J23: 0.225 | K23: 0.575
A24: Total PAH | C24: 6-8hrs | D24: None set ng/m5 | F24: 0.11 | G24: 0.15 | H24: 0.09 | I24: 0.09 | J24: 0.1 | K24: 0.12
A25: Anthanthrene | C25: 6-8hrs | D25: None set µg/m3 | F25: 0.0013 | G25: 0.0013 | H25: 0.0013 | I25: 0.0013 | J25: 0.0013 | K25: 0.0013
A26: Benzo(a)anthracene | C26: 6-8hrs | D26: None set µg/m3 | F26: 0.0013 | G26: 0.0013 | H26: 0.0013 | I26: 0.0013 | J26: 0.0013 | K26: 0.0013
A27: Benzo(a)pyrene | C27: 6-8hrs | D27: None set µg/m3 | F27: 0.0013 | G27: 0.0013 | H27: 0.0013 | I27: 0.0013 | J27: 0.0013 | K27: =AVERAGE(G27,I27) -> 0.0013
A28: Benzo(b)fluoranthene | C28: 6-8hrs | D28: None set µg/m3 | F28: 0.0013 | G28: 0.0013 | H28: 0.0013 | I28: 0.0013 | J28: 0.0013 | K28: 0.0013
A29: Benzo(b)naptho(2,1-d) thiophene | C29: 6-8hrs | D29: None set µg/m3 | F29: 0.0022 | G29: 0.0013 | H29: 0.0013 | I29: 0.0013 | J29: 0.00175 | K29: 0.0013
A30: Benzo(c)phenanthrene | C30: 6-8hrs | D30: None set µg/m3 | F30: 0.0013 | G30: 0.0013 | H30: 0.0013 | I30: 0.0013 | J30: 0.0013 | K30: 0.0013
A31: Benzo(ghi)perylene | C31: 6-8hrs | D31: None set µg/m3 | F31: 0.0075 | G31: 0.022 | H31: 0.0015 | I31: 0.003 | J31: 0.0045 | K31: 0.0125
A32: Benzo(k)fluoranthene | C32: 6-8hrs | D32: None set µg/m3 | F32: 0.0013 | G32: 0.0013 | H32: 0.0013 | I32: 0.0013 | J32: 0.0013 | K32: 0.0013
A33: Cholanthrene | C33: 6-8hrs | D33: None set µg/m3 | F33: 0.0013 | G33: 0.0013 | H33: 0.0013 | I33: 0.0013 | J33: 0.0013 | K33: 0.0013
A34: Chrysene | C34: 6-8hrs | D34: None set µg/m3 | F34: 0.0013 | G34: 0.0013 | H34: 0.0013 | I34: 0.0013 | J34: 0.0013 | K34: 0.0013
A35: Cyclopenta(cd)pyrene | C35: 6-8hrs | D35: None set µg/m3 | F35: 0.0013 | G35: 0.0013 | H35: 0.0013 | I35: 0.0013 | J35: 0.0013 | K35: 0.0013
A36: Dibenzo(ai)pyrene | C36: 6-8hrs | D36: None set µg/m3 | F36: 0.0013 | G36: 0.0013 | H36: 0.0013 | I36: 0.0013 | J36: 0.0013 | K36: 0.0013
A37: Dibenzo(ah)anthracene | C37: 6-8hrs | D37: None set µg/m3 | F37: 0.0013 | G37: 0.0013 | H37: 0.0013 | I37: 0.0013 | J37: 0.0013 | K37: 0.0013
A38: Fluoranthene | C38: 6-8hrs | D38: None set µg/m3 | F38: 0.027 | G38: 0.022 | H38: 0.018 | I38: 0.0099 | J38: 0.0225 | K38: 0.01595
A39: Indeno(123-cd) pyrene | C39: 6-8hrs | D39: None set µg/m3 | F39: 0.0013 | G39: 0.0032 | H39: 0.0013 | I39: 0.0013 | J39: 0.0013 | K39: 0.00225
A40: Naphthalene | C40: 6-8hrs | D40: None set µg/m3 | F40: 0.057 | G40: 0.086 | H40: 0.055 | I40: 0.057 | J40: =AVERAGE(F40,H40) -> 0.056 | K40: =AVERAGE(G40,I40) -> 0.0715
A41: Comments :

Sheet Air (CEMS)
A1: =+'Cover Page'!$B$29 -> Annual Performance Report 2021 | I1: =+'Cover Page'!$B$33 -> Staffordshire Energy Recovery Facility
A3: Emissions to Air (continuously monitored)
P4: Notes:
A5: Summary of monitoring undertaken, standards used and compliance | P5: Template may require adjustment for any bespoke monitoring requirements of permit
A6: MCERTS CEMs System | P6: Report to 2 decimal places, i.e. xx.xx%
A11: Results of emissions to air that are continuously monitored (maximum and average values for each line)
A12: Substance | B12: Reference Period | C12: Emission Limit Value | D12: A1 | F12: A2 | H12: A3 | J12: A4 | L12: A5
D13: Max. | E13: Avg. | F13: Max. | G13: Avg. | H13: Max. | I13: Avg. | J13: Max. | K13: Avg. | L13: Max. | M13: Avg.
A14: Oxides of nitrogen | B14: Daily mean | C14: 200 mg/m3 | D14: =NOx!O19 -> 197.7 | E14: =NOx!N19 -> 148.0083333 | F14: =NOx!O34 -> 180.9 | G14: =NOx!N34 -> 160.1166667
B15: ½ hourly mean | C15: 400 mg/m3 | D15: =NOx!M19 -> 321.4 | E15: =NOx!L19 -> 148.0333333 | F15: =NOx!M34 -> 319 | G15: =NOx!L34 -> 160.225
A16: Particulates | B16: Daily mean | C16: 10 mg/m3 | D16: =Particulates!O19 -> 2.5 | E16: =Particulates!N19 -> 0.3083333333 | F16: =Particulates!O34 -> 0.3 | G16: =Particulates!N34 -> 0.2083333333
B17: ½ hourly mean | C17: 30 mg/m3 | D17: =Particulates!M19 -> 4.4 | E17: =Particulates!L19 -> 0.3583333333 | F17: =Particulates!M34 -> 1.7 | G17: =Particulates!L34 -> 0.3
A18: Total Organic Carbon | B18: Daily mean | C18: 10 mg/m3 | D18: =TOC!O19 -> 0.6 | E18: =TOC!N19 -> 0.06666666667 | F18: =TOC!O34 -> 1.4 | G18: =TOC!N34 -> 0.008333333333
B19: ½ hourly mean | C19: 20 mg/m3 | D19: =TOC!M19 -> 15.5 | E19: =TOC!L19 -> 0.08333333333 | F19: =TOC!M34 -> 11.6 | G19: =TOC!L34 -> 0.025
A20: Hydrogen chloride | B20: Daily mean | C20: 10 mg/m3 | D20: =HCl!O19 -> 8.4 | E20: =HCl!N19 -> 3.216666667 | F20: =HCl!O34 -> 9.5 | G20: =HCl!N34 -> 3.366666667
B21: ½ hourly mean | C21: 60 mg/m3 | D21: =HCl!M19 -> 22.5 | E21: =HCl!L19 -> 3.266666667 | F21: =HCl!M34 -> 28.4 | G21: =HCl!L34 -> 3.616666667
A22: Sulphur dioxide | B22: Daily mean | C22: 50 mg/m3 | D22: ='SO2'!O19 -> 49.3 | E22: ='SO2'!N19 -> 34.81666667 | F22: ='SO2'!O34 -> 48.5 | G22: ='SO2'!N34 -> 35.34166667
B23: ½ hourly mean | C23: 200 mg/m3 | D23: ='SO2'!M19 -> 153.8 | E23: ='SO2'!L19 -> 34.825 | F23: ='SO2'!M34 -> 178.1 | G23: ='SO2'!L34 -> 35.4
A24: Carbon monoxide | B24: Daily mean | C24: 50 mg/m3 | D24: ='CO 95% 10 min'!Q19 -> 6.8 | E24: ='CO 95% 10 min'!P19 -> 3.533333333 | F24: ='CO 95% 10 min'!Q34 -> 9.8 | G24: ='CO 95% 10 min'!P34 -> 2.841666667
B25: 95%ile 10-min avg * | C25: 150 mg/m3 * | D25: ='CO 95% 10 min'!M19 -> 8.591666667 | E25: ='CO 95% 10 min'!N19 -> 3.616666667 | F25: ='CO 95% 10 min'!M34 -> 10.41666667 | G25: ='CO 95% 10 min'!N34 -> 2.908333333
A26: * = delete or amend as appropriate
A27: Comments :

Sheet HCl
A1: =+'Cover Page'!$B$29 -> Annual Performance Report 2021 | E1: =+'Cover Page'!$B$33 -> Staffordshire Energy Recovery Facility
A3: Monitoring of Hydrogen Chloride emissions | D3: Whole Installation | G3: See Notes in Cell Q3 | J3: =+A3 -> Monitoring of Hydrogen Chloride emissions | N3: Per Combustion Line | Q3: Notes:
Q4: User to add logic to complete Whole installation, Table A5:G18. From the data in Per Combustion Line, Table J6:O79, subject to No. of lines installed
A5: mg/Nm3 | B5: 1/2 Hourly Reference Periods | E5: Daily Reference Periods
A6: =+'Cover Page'!C39 -> 2021 | B6: 1/2 hourly HCl ELV | C6: Monthly 1/2 hourly mean | D6: Highest 1/2 hourly maximum | E6: Daily HCl ELV | F6: Monthly daily mean | G6: Highest daily maximum | J6: =+A6 -> 2021 | K6: mg/Nm3 | L6: Monthly 1/2 hourly mean | M6: Monthly 1/2 hourly maximum | N6: Monthly daily mean | O6: Monthly daily maximum
A7: Jan | B7: 60 | C7: =AVERAGE(L7,L22) -> 5.75 | D7: =MAX(M7,M22) -> 28.4 | E7: 10 | F7: =AVERAGE(N7,N22) -> 4.3 | G7: =MAX(O7,O22) -> 8.4 | J7: A1 | K7: Jan | L7: 5.1 | M7: 13.6 | N7: 5 | O7: 8.4
A8: Feb | B8: 60 | C8: =AVERAGE(L8,L23) -> 6.2 | D8: =MAX(M8,M23) -> 25.3 | E8: 10 | F8: =AVERAGE(N8,N23) -> 6.15 | G8: =MAX(O8,O23) -> 9.5 | K8: Feb | L8: 5 | M8: 22.5 | N8: 4.9 | O8: 7.2
A9: Mar | B9: 60 | C9: =AVERAGE(L9,L24) -> 5.45 | D9: 19 | E9: 10 | F9: 5.45 | G9: 8.4 | K9: Mar | L9: 5.5 | M9: 19 | N9: 5.5 | O9: 8.4 | Q9: Whole Installation table A5:G18:
A10: Apr | B10: 60 | C10: 2.95 | D10: 17.7 | E10: 10 | F10: 2.9 | G10: 6.6 | K10: Apr | L10: 3.3 | M10: 15.7 | N10: 3.3 | O10: 5.7 | Q10: Mean: for 1/2 hourly and daily periods calculate mean of values across all operational combustion lines for the month
A11: May | B11: 60 | C11: 2.95 | D11: 16.8 | E11: 10 | F11: 2.95 | G11: 6.2 | K11: May | L11: 3.2 | M11: 10.4 | N11: 3.2 | O11: 6.2
A12: Jun | B12: 60 | C12: =AVERAGE(L12,L27) -> 2.7 | D12: 9 | E12: 10 | F12: 2.65 | G12: 4.6 | K12: Jun | L12: 2.4 | M12: 5.8 | N12: 2.3 | O12: 4.3
A13: Jul | B13: 60 | C13: 2.35 | D13: 9.9 | E13: 10 | F13: 2.35 | G13: 4.9 | K13: Jul | L13: 2 | M13: 7.5 | N13: 2 | O13: 3.6 | Q13: Maximum: for 1/2 hourly and daily periods use the highest value across all operational combustion lines for the month
A14: Aug | B14: 60 | C14: 2.75 | D14: 7.7 | E14: 10 | F14: 2.75 | G14: 4.7 | K14: Aug | L14: 2.4 | M14: 6.2 | N14: 2.4 | O14: 3.2
A15: Sep | B15: 60 | C15: 2.85 | D15: 14 | E15: 10 | F15: 2.8 | G15: 5.6 | K15: Sep | L15: 2.6 | M15: 9.6 | N15: 2.6 | O15: 4
A16: Oct | B16: 60 | C16: 3.25 | D16: 10 | E16: 10 | F16: 3.2 | G16: 5.4 | K16: Oct | L16: 3.3 | M16: 10 | N16: 3.2 | O16: 4.4
A17: Nov | B17: 60 | C17: 2.25 | D17: 10.3 | E17: 10 | F17: 2.2 | G17: 3.8 | K17: Nov | L17: 2.5 | M17: 10.3 | N17: 2.4 | O17: 3.8
A18: Dec | B18: 60 | C18: 1.85 | D18: 9.1 | E18: 10 | F18: 1.8 | G18: 3.3 | K18: Dec | L18: 1.9 | M18: 9.1 | N18: 1.8 | O18: 3
K19: Annual | L19: =AVERAGE(L7:L18) -> 3.266666667 | M19: =MAX(M7:M18) -> 22.5 | N19: =AVERAGE(N7:N18) -> 3.216666667 | O19: =MAX(O7:O18) -> 8.4
J21: =+A6 -> 2021 | K21: mg/Nm3 | L21: Monthly 1/2 hourly mean | M21: Monthly 1/2 hourly maximum | N21: Monthly daily mean | O21: Monthly daily maximum
J22: A2 | K22: Jan | L22: 6.4 | M22: 28.4 | N22: 3.6 | O22: 8.4
K23: Feb | L23: 7.4 | M23: 25.3 | N23: 7.4 | O23: 9.5
K24: Mar | L24: 5.4 | M24: 18.9 | N24: 5.4 | O24: 7
K25: Apr | L25: 2.6 | M25: 17.7 | N25: 2.5 | O25: 6.6
K26: May | L26: 2.7 | M26: 16.8 | N26: 2.7 | O26: 5.5
K27: Jun | L27: 3 | M27: 9 | N27: 3 | O27: 4.6
K28: Jul | L28: 2.7 | M28: 9.9 | N28: 2.7 | O28: 4.9
K29: Aug | L29: 3.1 | M29: 7.7 | N29: 3.1 | O29: 4.7
K30: Sep | L30: 3.1 | M30: 14 | N30: 3 | O30: 5.6
K31: Oct | L31: 3.2 | M31: 7.5 | N31: 3.2 | O31: 5.4
K32: Nov | L32: 2 | M32: 5.8 | N32: 2 | O32: 3.2
K33: Dec | L33: 1.8 | M33: 6.3 | N33: 1.8 | O33: 3.3
K34: Annual | L34: =AVERAGE(L22:L33) -> 3.616666667 | M34: =MAX(M22:M33) -> 28.4 | N34: =AVERAGE(N22:N33) -> 3.366666667 | O34: =MAX(O22:O33) -> 9.5
J36: =+A6 -> 2021 | K36: mg/Nm3 | L36: Monthly 1/2 hourly mean | M36: Monthly 1/2 hourly maximum | N36: Monthly daily mean | O36: Monthly daily maximum
J37: A3 | K37: Jan
K38: Feb
K39: Mar
K40: Apr
K41: May
K42: Jun
K43: Jul
K44: Aug
K45: Sep
K46: Oct
K47: Nov
A48: Comments : | K48: Dec
K49: Annual | L49: =AVERAGE(L37:L48) ->  | M49: =MAX(M37:M48) -> 0 | N49: =AVERAGE(N37:N48) ->  | O49: =MAX(O37:O48) -> 0
J51: =+A6 -> 2021 | K51: mg/Nm3 | L51: Monthly 1/2 hourly mean | M51: Monthly 1/2 hourly maximum | N51: Monthly daily mean | O51: Monthly daily maximum
J52: A4 | K52: Jan
K53: Feb
K54: Mar
K55: Apr
K56: May
K57: Jun
K58: Jul
K59: Aug
K60: Sep
K61: Oct
K62: Nov
K63: Dec
K64: Annual | L64: =AVERAGE(L52:L63) ->  | M64: =MAX(M52:M63) -> 0 | N64: =AVERAGE(N52:N63) ->  | O64: =MAX(O52:O63) -> 0
J66: =+A6 -> 2021 | K66: mg/Nm3 | L66: Monthly 1/2 hourly mean | M66: Monthly 1/2 hourly maximum | N66: Monthly daily mean | O66: Monthly daily maximum
J67: A5 | K67: Jan
K68: Feb
K69: Mar
K70: Apr
K71: May
K72: Jun
K73: Jul
K74: Aug
K75: Sep
K76: Oct
K77: Nov
K78: Dec
K79: Annual | L79: =AVERAGE(L67:L78) ->  | M79: =MAX(M67:M78) -> 0 | N79: =AVERAGE(N67:N78) ->  | O79: =MAX(O67:O78) -> 0

Sheet SO2
A1: =+'Cover Page'!$B$29 -> Annual Performance Report 2021 | E1: =+'Cover Page'!$B$33 -> Staffordshire Energy Recovery Facility
A3: Monitoring of Sulphur dioxide emissions | D3: Whole Installation | G3: See Notes in Cell Q3 | J3: =+A3 -> Monitoring of Sulphur dioxide emissions | N3: Per Combustion Line | Q3: Notes:
Q4: User to add logic to complete Whole installation, Table A5:G18. From the data in Per Combustion Line, Table J6:O79, subject to No. of lines installed
A5: mg/Nm3 | B5: 1/2 Hourly Reference Periods | E5: Daily Reference Periods
A6: =+'Cover Page'!C39 -> 2021 | B6: 1/2 hourly SO2 ELV | C6: Monthly 1/2 hourly mean | D6: Highest 1/2 hourly maximum | E6: Daily SO2 ELV | F6: Monthly daily mean | G6: Highest daily maximum | J6: =+A6 -> 2021 | K6: mg/Nm3 | L6: Monthly 1/2 hourly mean | M6: Monthly 1/2 hourly maximum | N6: Monthly daily mean | O6: Monthly daily maximum
A7: Jan | B7: 200 | C7: =AVERAGE(L7,L22) -> 31.9 | D7: =MAX(M7,M22) -> 110.4 | E7: 50 | F7: =AVERAGE(N7,N22) -> 31.8 | G7: =MAX(O7,O22) -> 47.8 | J7: A1 | K7: Jan | L7: 39.9 | M7: 110.4 | N7: 39.7 | O7: 47.8
A8: Feb | B8: 200 | C8: =AVERAGE(L8,L23) -> 37.3 | D8: =MAX(M8,M23) -> 135.9 | E8: 50 | F8: =AVERAGE(N8,N23) -> 37.35 | G8: =MAX(O8,O23) -> 49.3 | K8: Feb | L8: 43.7 | M8: 135.9 | N8: 43.9 | O8: 49.3
A9: Mar | B9: 200 | C9: 38.8 | D9: 153.8 | E9: 50 | F9: 38.75 | G9: 48.6 | K9: Mar | L9: 42.6 | M9: 153.8 | N9: 42.4 | O9: 48.6 | Q9: Whole Installation table A5:G18:
A10: Apr | B10: 200 | C10: 34.75 | D10: 114.3 | E10: 50 | F10: 34.5 | G10: 46.8 | K10: Apr | L10: 43.1 | M10: 114.3 | N10: 43.2 | O10: 46.8 | Q10: Mean: for 1/2 hourly and daily periods calculate mean of values across all operational combustion lines for the month
A11: May | B11: 200 | C11: 43.8 | D11: 135.7 | E11: 50 | F11: 43.8 | G11: 47.7 | K11: May | L11: 42.9 | M11: 116.5 | N11: 42.9 | O11: 47
A12: Jun | B12: 200 | C12: 38.85 | D12: 146.6 | E12: 50 | F12: 38.9 | G12: 47 | K12: Jun | L12: 35.3 | M12: 138.7 | N12: 35.4 | O12: 42.9
A13: Jul | B13: 200 | C13: 30.2 | D13: 138.7 | E13: 50 | F13: 30.4 | G13: 43.8 | K13: Jul | L13: 25.6 | M13: 112.3 | N13: 25.9 | O13: 39.5 | Q13: Maximum: for 1/2 hourly and daily periods use the highest value across all operational combustion lines for the month
A14: Aug | B14: 200 | C14: 33.8 | D14: 178.1 | E14: 50 | F14: 33.7 | G14: 48.5 | K14: Aug | L14: 28.3 | M14: 120.7 | N14: 28.2 | O14: 46.3
A15: Sep | B15: 200 | C15: 28.6 | D15: 120.7 | E15: 50 | F15: 28.55 | G15: 44 | K15: Sep | L15: 23.8 | M15: 103.8 | N15: 23.7 | O15: 40
A16: Oct | B16: 200 | C16: 35.45 | D16: 113 | E16: 50 | F16: 35.4 | G16: 47.4 | K16: Oct | L16: 30.6 | M16: 111.9 | N16: 30.5 | O16: 42.6
A17: Nov | B17: 200 | C17: 33.9 | D17: 123.4 | E17: 50 | F17: 33.8 | G17: 46.9 | K17: Nov | L17: 31 | M17: 120.6 | N17: 30.9 | O17: 39.5
A18: Dec | B18: 200 | C18: 34 | D18: 156.2 | E18: 50 | F18: 34 | G18: 48.2 | K18: Dec | L18: 31.1 | M18: 148.2 | N18: 31.1 | O18: 46.4
K19: Annual | L19: =AVERAGE(L7:L18) -> 34.825 | M19: =MAX(M7:M18) -> 153.8 | N19: =AVERAGE(N7:N18) -> 34.81666667 | O19: =MAX(O7:O18) -> 49.3
J21: =+A6 -> 2021 | K21: mg/Nm3 | L21: Monthly 1/2 hourly mean | M21: Monthly 1/2 hourly maximum | N21: Monthly daily mean | O21: Monthly daily maximum
J22: A2 | K22: Jan | L22: 23.9 | M22: 98.7 | N22: 23.9 | O22: 40.9
K23: Feb | L23: 30.9 | M23: 126.4 | N23: 30.8 | O23: 47.7
K24: Mar | L24: 35 | M24: 148.7 | N24: 35.1 | O24: 44.9
K25: Apr | L25: 26.4 | M25: 96.4 | N25: 25.8 | O25: 40.5
K26: May | L26: 44.7 | M26: 135.7 | N26: 44.7 | O26: 47.7
K27: Jun | L27: 42.4 | M27: 146.6 | N27: 42.4 | O27: 47
K28: Jul | L28: 34.8 | M28: 138.7 | N28: 34.9 | O28: 43.8
K29: Aug | L29: 39.3 | M29: 178.1 | N29: 39.2 | O29: 48.5
K30: Sep | L30: 33.4 | M30: 120.7 | N30: 33.4 | O30: 44
K31: Oct | L31: 40.3 | M31: 113 | N31: 40.3 | O31: 47.4
K32: Nov | L32: 36.8 | M32: 123.4 | N32: 36.7 | O32: 46.9
K33: Dec | L33: 36.9 | M33: 156.2 | N33: 36.9 | O33: 48.2
K34: Annual | L34: =AVERAGE(L22:L33) -> 35.4 | M34: =MAX(M22:M33) -> 178.1 | N34: =AVERAGE(N22:N33) -> 35.34166667 | O34: =MAX(O22:O33) -> 48.5
J36: =+A6 -> 2021 | K36: mg/Nm3 | L36: Monthly 1/2 hourly mean | M36: Monthly 1/2 hourly maximum | N36: Monthly daily mean | O36: Monthly daily maximum
J37: A3 | K37: Jan
K38: Feb
K39: Mar
K40: Apr
K41: May
K42: Jun
K43: Jul
K44: Aug
K45: Sep
K46: Oct
K47: Nov
A48: Comments : | K48: Dec
K49: Annual | L49: =AVERAGE(L37:L48) ->  | M49: =MAX(M37:M48) -> 0 | N49: =AVERAGE(N37:N48) ->  | O49: =MAX(O37:O48) -> 0
J51: =+A6 -> 2021 | K51: mg/Nm3 | L51: Monthly 1/2 hourly mean | M51: Monthly 1/2 hourly maximum | N51: Monthly daily mean | O51: Monthly daily maximum
J52: A4 | K52: Jan
K53: Feb
K54: Mar
K55: Apr
K56: May
K57: Jun
K58: Jul
K59: Aug
K60: Sep
K61: Oct
K62: Nov
K63: Dec
K64: Annual | L64: =AVERAGE(L52:L63) ->  | M64: =MAX(M52:M63) -> 0 | N64: =AVERAGE(N52:N63) ->  | O64: =MAX(O52:O63) -> 0
J66: =+A6 -> 2021 | K66: mg/Nm3 | L66: Monthly 1/2 hourly mean | M66: Monthly 1/2 hourly maximum | N66: Monthly daily mean | O66: Monthly daily maximum
J67: A5 | K67: Jan
K68: Feb
K69: Mar
K70: Apr
K71: May
K72: Jun
K73: Jul
K74: Aug
K75: Sep
K76: Oct
K77: Nov
K78: Dec
K79: Annual | L79: =AVERAGE(L67:L78) ->  | M79: =MAX(M67:M78) -> 0 | N79: =AVERAGE(N67:N78) ->  | O79: =MAX(O67:O78) -> 0

Sheet NOx
A1: =+'Cover Page'!$B$29 -> Annual Performance Report 2021 | E1: =+'Cover Page'!$B$33 -> Staffordshire Energy Recovery Facility
A3: Monitoring of Oxides of Nitrogen emissions | D3: Whole Installation | G3: See Notes in Cell Q3 | J3: =+A3 -> Monitoring of Oxides of Nitrogen emissions | N3: Per Combustion Line | Q3: Notes:
Q4: User to add logic to complete Whole installation, Table A5:G18. From the data in Per Combustion Line, Table J6:O79, subject to No. of lines installed
A5: mg/Nm3 | B5: 1/2 Hourly Reference Periods | E5: Daily Reference Periods
A6: =+'Cover Page'!C39 -> 2021 | B6: 1/2 hourly NOx ELV | C6: Monthly 1/2 hourly mean | D6: Highest 1/2 hourly maximum | E6: Daily NOx ELV | F6: Monthly daily mean | G6: Highest daily maximum | J6: =+A6 -> 2021 | K6: mg/Nm3 | L6: Monthly 1/2 hourly mean | M6: Monthly 1/2 hourly maximum | N6: Monthly daily mean | O6: Monthly daily maximum
A7: Jan | B7: 400 | C7: =AVERAGE(L7,L22) -> 143.4 | D7: =AVERAGE(M7,M22) -> 289.8 | E7: 200 | F7: =AVERAGE(N7,N22) -> 143.3 | G7: =AVERAGE(O7,O22) -> 159.8 | J7: A1 | K7: Jan | L7: 134.6 | M7: 283.8 | N7: 134.5 | O7: 145.4
A8: Feb | B8: 400 | C8: =AVERAGE(L8,L23) -> 152.95 | D8: =AVERAGE(M8,M23) -> 268.3 | E8: 200 | F8: =AVERAGE(N8,N23) -> 153.25 | G8: =AVERAGE(O8,O23) -> 175.4 | K8: Feb | L8: 146.7 | M8: 275.8 | N8: 147.3 | O8: 172.7
A9: Mar | B9: 400 | C9: =AVERAGE(L9,L24) -> 157.3 | D9: 260.75 | E9: 200 | F9: 157.05 | G9: 166.7 | K9: Mar | L9: 150.9 | M9: 251.3 | N9: 150.8 | O9: 159.6 | Q9: Whole Installation table A5:G18:
A10: Apr | B10: 400 | C10: 155.5 | D10: 200.5 | E10: 200 | F10: 155.2 | G10: 164.05 | K10: Apr | L10: 153 | M10: 190.2 | N10: 152.8 | O10: 163.5 | Q10: Mean: for 1/2 hourly and daily periods calculate mean of values across all operational combustion lines for the month
A11: May | B11: 400 | C11: 154.25 | D11: 293.3 | E11: 200 | F11: 154.2 | G11: 164.05 | K11: May | L11: 147.1 | M11: 310 | N11: 147.1 | O11: 156.1
A12: Jun | B12: 400 | C12: 153.5 | D12: 302.3 | E12: 200 | F12: 153.5 | G12: 164.05 | K12: Jun | L12: 145 | M12: 321.4 | N12: 145.1 | O12: 158.4
A13: Jul | B13: 400 | C13: 152.45 | D13: 202.1 | E13: 200 | F13: 152.45 | G13: 161.5 | K13: Jul | L13: 146.4 | M13: 207 | N13: 146.3 | O13: 156.5 | Q13: Maximum: for 1/2 hourly and daily periods use the highest value across all operational combustion lines for the month
A14: Aug | B14: 400 | C14: 154.05 | D14: 296.7 | E14: 200 | F14: 154 | G14: 166.2 | K14: Aug | L14: 150.4 | M14: 304 | N14: 150.3 | O14: 163.5
A15: Sep | B15: 400 | C15: 154.9 | D15: 308.5 | E15: 200 | F15: 154.9 | G15: 163.7 | K15: Sep | L15: 148.1 | M15: 310.1 | N15: 148.1 | O15: 156.4
A16: Oct | B16: 400 | C16: 155.4 | D16: =AVERAGE(M16,M31) -> 294 | E16: 200 | F16: 155.4 | G16: =AVERAGE(O16,O31) -> 165.35 | K16: Oct | L16: 147.3 | M16: 311.6 | N16: 147.3 | O16: 160.2
A17: Nov | B17: 400 | C17: =AVERAGE(L17,L32) -> 156.35 | D17: 267.95 | E17: 200 | F17: 156.3 | G17: 170.5 | K17: Nov | L17: 151.2 | M17: 293.1 | N17: 151.1 | O17: 171.6
A18: Dec | B18: 400 | C18: 159.5 | D18: 303.1 | E18: 200 | F18: =AVERAGE(N18,N33) -> 159.2 | G18: 189.3 | K18: Dec | L18: 155.7 | M18: 287.2 | N18: 155.4 | O18: 197.7
K19: Annual | L19: =AVERAGE(L7:L18) -> 148.0333333 | M19: =MAX(M7:M18) -> 321.4 | N19: =AVERAGE(N7:N18) -> 148.0083333 | O19: =MAX(O7:O18) -> 197.7
J21: =+A6 -> 2021 | K21: mg/Nm3 | L21: Monthly 1/2 hourly mean | M21: Monthly 1/2 hourly maximum | N21: Monthly daily mean | O21: Monthly daily maximum
J22: A2 | K22: Jan | L22: 152.2 | M22: 295.8 | N22: 152.1 | O22: 174.2
K23: Feb | L23: 159.2 | M23: 260.8 | N23: 159.2 | O23: 178.1
K24: Mar | L24: 163.7 | M24: 270.2 | N24: 163.3 | O24: 173.8
K25: Apr | L25: 158 | M25: 210.8 | N25: 157.6 | O25: 164.6
K26: May | L26: 161.4 | M26: 276.6 | N26: 161.3 | O26: 172
K27: Jun | L27: 162 | M27: 283.2 | N27: 161.9 | O27: 169.7
K28: Jul | L28: 158.5 | M28: 197.2 | N28: 158.6 | O28: 166.5
K29: Aug | L29: 157.7 | M29: 289.4 | N29: 157.7 | O29: 168.9
K30: Sep | L30: 161.7 | M30: 306.9 | N30: 161.7 | O30: 171
K31: Oct | L31: 163.5 | M31: 276.4 | N31: 163.5 | O31: 170.5
K32: Nov | L32: 161.5 | M32: 242.8 | N32: 161.5 | O32: 169.4
K33: Dec | L33: 163.3 | M33: 319 | N33: 163 | O33: 180.9
K34: Annual | L34: =AVERAGE(L22:L33) -> 160.225 | M34: =MAX(M22:M33) -> 319 | N34: =AVERAGE(N22:N33) -> 160.1166667 | O34: =MAX(O22:O33) -> 180.9
J36: =+A6 -> 2021 | K36: mg/Nm3 | L36: Monthly 1/2 hourly mean | M36: Monthly 1/2 hourly maximum | N36: Monthly daily mean | O36: Monthly daily maximum
J37: A3 | K37: Jan
K38: Feb
K39: Mar
K40: Apr
K41: May
K42: Jun
K43: Jul
K44: Aug
K45: Sep
K46: Oct
K47: Nov
A48: Comments : | K48: Dec
K49: Annual | L49: =AVERAGE(L37:L48) ->  | M49: =MAX(M37:M48) -> 0 | N49: =AVERAGE(N37:N48) ->  | O49: =MAX(O37:O48) -> 0
J51: =+A6 -> 2021 | K51: mg/Nm3 | L51: Monthly 1/2 hourly mean | M51: Monthly 1/2 hourly maximum | N51: Monthly daily mean | O51: Monthly daily maximum
J52: A4 | K52: Jan
K53: Feb
K54: Mar
K55: Apr
K56: May
K57: Jun
K58: Jul
K59: Aug
K60: Sep
K61: Oct
K62: Nov
K63: Dec
K64: Annual | L64: =AVERAGE(L52:L63) ->  | M64: =MAX(M52:M63) -> 0 | N64: =AVERAGE(N52:N63) ->  | O64: =MAX(O52:O63) -> 0
J66: =+A6 -> 2021 | K66: mg/Nm3 | L66: Monthly 1/2 hourly mean | M66: Monthly 1/2 hourly maximum | N66: Monthly daily mean | O66: Monthly daily maximum
J67: A5 | K67: Jan
K68: Feb
K69: Mar
K70: Apr
K71: May
K72: Jun
K73: Jul
K74: Aug
K75: Sep
K76: Oct
K77: Nov
K78: Dec
K79: Annual | L79: =AVERAGE(L67:L78) ->  | M79: =MAX(M67:M78) -> 0 | N79: =AVERAGE(N67:N78) ->  | O79: =MAX(O67:O78) -> 0

Sheet TOC
A1: =+'Cover Page'!$B$29 -> Annual Performance Report 2021 | E1: =+'Cover Page'!$B$33 -> Staffordshire Energy Recovery Facility
A3: Monitoring of Total organic carbon emissions | D3: Whole Installation | G3: See Notes in Cell Q3 | J3: =+A3 -> Monitoring of Total organic carbon emissions | N3: Per Combustion Line | Q3: Notes:
Q4: User to add logic to complete Whole installation, Table A5:G18. From the data in Per Combustion Line, Table J6:O79, subject to No. of lines installed
A5: mg/Nm3 | B5: 1/2 Hourly Reference Periods | E5: Daily Reference Periods
A6: =+'Cover Page'!C39 -> 2021 | B6: 1/2 hourly TOC ELV | C6: Monthly 1/2 hourly mean | D6: Highest 1/2 hourly maximum | E6: Daily TOC ELV | F6: Monthly daily mean | G6: Highest daily maximum | J6: =+A6 -> 2021 | K6: mg/Nm3 | L6: Monthly 1/2 hourly mean | M6: Monthly 1/2 hourly maximum | N6: Monthly daily mean | O6: Monthly daily maximum
A7: Jan | B7: 20 | C7: =AVERAGE(L7,L22) -> 0.05 | D7: =MAX(M7,M22) -> 6.3 | E7: 10 | F7: =AVERAGE(N7,N22) -> 0 | G7: =MAX(O7,O22) -> 0.2 | J7: A1 | K7: Jan | L7: 0.1 | M7: 6.1 | N7: 0 | O7: 0.2
A8: Feb | B8: 20 | C8: =AVERAGE(L8,L23) -> 0 | D8: =MAX(M8,M23) -> 1.8 | E8: 10 | F8: =AVERAGE(N8,N23) -> 0 | G8: =MAX(O8,O23) -> 0.2 | K8: Feb | L8: 0 | M8: 1.8 | N8: 0 | O8: 0.2
A9: Mar | B9: 20 | C9: 0 | D9: 3.6 | E9: 10 | F9: 0 | G9: 0.3 | K9: Mar | L9: 0 | M9: 3 | N9: 0 | O9: 0.2 | Q9: Whole Installation table A5:G18:
A10: Apr | B10: 20 | C10: 0.15 | D10: 10.3 | E10: 10 | F10: 0.05 | G10: 1.4 | K10: Apr | L10: 0.1 | M10: 4.4 | N10: 0 | O10: 0.3 | Q10: Mean: for 1/2 hourly and daily periods calculate mean of values across all operational combustion lines for the month
A11: May | B11: 20 | C11: 0.05 | D11: 1.7 | E11: 10 | F11: 0.05 | G11: 0.4 | K11: May | L11: 0.1 | M11: 1.1 | N11: 0.1 | O11: 0.4
A12: Jun | B12: 20 | C12: 0.05 | D12: 11.6 | E12: 10 | F12: 0.05 | G12: 0.8 | K12: Jun | L12: 0.1 | M12: 10.6 | N12: 0.1 | O12: 0.6
A13: Jul | B13: 20 | C13: 0.1 | D13: 7.2 | E13: 10 | F13: 0.05 | G13: 0.6 | K13: Jul | L13: 0.1 | M13: 7.2 | N13: 0.1 | O13: 0.4 | Q13: Maximum: for 1/2 hourly and daily periods use the highest value across all operational combustion lines for the month
A14: Aug | B14: 20 | C14: 0.05 | D14: 7.2 | E14: 10 | F14: 0.05 | G14: 0.4 | K14: Aug | L14: 0.1 | M14: 7.2 | N14: 0.1 | O14: 0.4
A15: Sep | B15: 20 | C15: 0.05 | D15: 5.3 | E15: 10 | F15: 0.05 | G15: 0.5 | K15: Sep | L15: 0.1 | M15: 2.5 | N15: 0.1 | O15: 0.5
A16: Oct | B16: 20 | C16: 0.05 | D16: 6.8 | E16: 10 | F16: 0.05 | G16: 0.3 | K16: Oct | L16: 0.1 | M16: 6.8 | N16: 0.1 | O16: 0.3
A17: Nov | B17: 20 | C17: 0.05 | D17: 15.5 | E17: 10 | F17: 0.05 | G17: =MAX(O17,O32) -> 0.4 | K17: Nov | L17: 0.1 | M17: 15.5 | N17: 0.1 | O17: 0.4
A18: Dec | B18: 20 | C18: 0.05 | D18: 4 | E18: 10 | F18: 0.05 | G18: 0.4 | K18: Dec | L18: 0.1 | M18: 2 | N18: 0.1 | O18: 0.4
K19: Annual | L19: =AVERAGE(L7:L18) -> 0.08333333333 | M19: =MAX(M7:M18) -> 15.5 | N19: =AVERAGE(N7:N18) -> 0.06666666667 | O19: =MAX(O7:O18) -> 0.6
J21: =+A6 -> 2021 | K21: mg/Nm3 | L21: Monthly 1/2 hourly mean | M21: Monthly 1/2 hourly maximum | N21: Monthly daily mean | O21: Monthly daily maximum
J22: A2 | K22: Jan | L22: 0 | M22: 6.3 | N22: 0 | O22: 0.2
K23: Feb | L23: 0 | M23: 1.4 | N23: 0 | O23: 0.2
K24: Mar | L24: 0 | M24: 3.6 | N24: 0 | O24: 0.3
K25: Apr | L25: 0.2 | M25: 10.3 | N25: 0.1 | O25: 1.4
K26: May | L26: 0 | M26: 1.7 | N26: 0 | O26: 0.1
K27: Jun | L27: 0 | M27: 11.6 | N27: 0 | O27: 0.8
K28: Jul | L28: 0.1 | M28: 5.9 | N28: 0 | O28: 0.6
K29: Aug | L29: 0 | M29: 7.1 | N29: 0 | O29: 0.2
K30: Sep | L30: 0 | M30: 5.3 | N30: 0 | O30: 0.4
K31: Oct | L31: 0 | M31: 3.2 | N31: 0 | O31: 0.1
K32: Nov | L32: 0 | M32: 6.7 | N32: 0 | O32: 0.2
K33: Dec | L33: 0 | M33: 4 | N33: 0 | O33: 0.2
K34: Annual | L34: =AVERAGE(L22:L33) -> 0.025 | M34: =MAX(M22:M33) -> 11.6 | N34: =AVERAGE(N22:N33) -> 0.008333333333 | O34: =MAX(O22:O33) -> 1.4
J36: =+A6 -> 2021 | K36: mg/Nm3 | L36: Monthly 1/2 hourly mean | M36: Monthly 1/2 hourly maximum | N36: Monthly daily mean | O36: Monthly daily maximum
J37: A3 | K37: Jan
K38: Feb
K39: Mar
K40: Apr
K41: May
K42: Jun
K43: Jul
K44: Aug
K45: Sep
K46: Oct
K47: Nov
A48: Comments : | K48: Dec
K49: Annual | L49: =AVERAGE(L37:L48) ->  | M49: =MAX(M37:M48) -> 0 | N49: =AVERAGE(N37:N48) ->  | O49: =MAX(O37:O48) -> 0
J51: =+A6 -> 2021 | K51: mg/Nm3 | L51: Monthly 1/2 hourly mean | M51: Monthly 1/2 hourly maximum | N51: Monthly daily mean | O51: Monthly daily maximum
J52: A4 | K52: Jan
K53: Feb
K54: Mar
K55: Apr
K56: May
K57: Jun
K58: Jul
K59: Aug
K60: Sep
K61: Oct
K62: Nov
K63: Dec
K64: Annual | L64: =AVERAGE(L52:L63) ->  | M64: =MAX(M52:M63) -> 0 | N64: =AVERAGE(N52:N63) ->  | O64: =MAX(O52:O63) -> 0
J66: =+A6 -> 2021 | K66: mg/Nm3 | L66: Monthly 1/2 hourly mean | M66: Monthly 1/2 hourly maximum | N66: Monthly daily mean | O66: Monthly daily maximum
J67: A5 | K67: Jan
K68: Feb
K69: Mar
K70: Apr
K71: May
K72: Jun
K73: Jul
K74: Aug
K75: Sep
K76: Oct
K77: Nov
K78: Dec
K79: Annual | L79: =AVERAGE(L67:L78) ->  | M79: =MAX(M67:M78) -> 0 | N79: =AVERAGE(N67:N78) ->  | O79: =MAX(O67:O78) -> 0

Sheet Particulates
A1: =+'Cover Page'!$B$29 -> Annual Performance Report 2021 | E1: =+'Cover Page'!$B$33 -> Staffordshire Energy Recovery Facility
A3: Monitoring of Particulate matter emissions | D3: Whole Installation | G3: See Notes in Cell Q3 | J3: =+A3 -> Monitoring of Particulate matter emissions | N3: Per Combustion Line | Q3: Notes:
Q4: User to add logic to complete Whole installation, Table A5:G18. From the data in Per Combustion Line, Table J6:O79, subject to No. of lines installed
A5: mg/Nm3 | B5: 1/2 Hourly Reference Periods | E5: Daily Reference Periods
A6: =+'Cover Page'!C39 -> 2021 | B6: 1/2 hourly PM ELV | C6: Monthly 1/2 hourly mean | D6: Highest 1/2 hourly maximum | E6: Daily PM ELV | F6: Monthly daily mean | G6: Highest daily maximum | J6: =+A6 -> 2021 | K6: mg/Nm3 | L6: Monthly 1/2 hourly mean | M6: Monthly 1/2 hourly maximum | N6: Monthly daily mean | O6: Monthly daily maximum
A7: Jan | B7: 30 | C7: =AVERAGE(L7,L22) -> 0.3 | D7: =MAX(M7,M22) -> 0.4 | E7: 10 | F7: =AVERAGE(N7,N22) -> 0.25 | G7: =MAX(O7,O22) -> 0.3 | J7: A1 | K7: Jan | L7: 0.3 | M7: 0.4 | N7: 0.2 | O7: 0.3
A8: Feb | B8: 30 | C8: =AVERAGE(L8,L23) -> 0.3 | D8: =MAX(M8,M23) -> 0.5 | E8: 10 | F8: =AVERAGE(N8,N23) -> 0.25 | G8: =MAX(O8,O23) -> 0.3 | K8: Feb | L8: 0.3 | M8: 0.5 | N8: 0.3 | O8: 0.3
A9: Mar | B9: 30 | C9: 0.3 | D9: 1.7 | E9: 10 | F9: 0.25 | G9: 0.4 | K9: Mar | L9: 0.3 | M9: 1.1 | N9: 0.3 | O9: 0.4 | Q9: Whole Installation table A5:G18:
A10: Apr | B10: 30 | C10: 0.3 | D10: 0.5 | E10: 10 | F10: 0.2 | G10: 0.3 | K10: Apr | L10: 0.3 | M10: 0.5 | N10: 0.2 | O10: 0.3 | Q10: Mean: for 1/2 hourly and daily periods calculate mean of values across all operational combustion lines for the month
A11: May | B11: 30 | C11: 0.3 | D11: =MAX(M11,M26) -> 0.6 | E11: 10 | F11: 0.25 | G11: 0.3 | K11: May | L11: 0.3 | M11: 0.6 | N11: 0.3 | O11: 0.3
A12: Jun | B12: 30 | C12: 0.3 | D12: 0.4 | E12: 10 | F12: 0.25 | G12: 0.3 | K12: Jun | L12: 0.3 | M12: 0.4 | N12: 0.3 | O12: 0.3
A13: Jul | B13: 30 | C13: 0.3 | D13: 0.4 | E13: 10 | F13: 0.2 | G13: 0.3 | K13: Jul | L13: 0.3 | M13: 0.4 | N13: 0.2 | O13: 0.3 | Q13: Maximum: for 1/2 hourly and daily periods use the highest value across all operational combustion lines for the month
A14: Aug | B14: 30 | C14: 0.3 | D14: 0.4 | E14: 10 | F14: 0.2 | G14: 0.3 | K14: Aug | L14: 0.3 | M14: 0.4 | N14: 0.2 | O14: 0.3
A15: Sep | B15: 30 | C15: 0.35 | D15: 1.1 | E15: 10 | F15: 0.25 | G15: 0.6 | K15: Sep | L15: 0.4 | M15: 1.1 | N15: 0.3 | O15: 0.6
A16: Oct | B16: 30 | C16: 0.5 | D16: 4.4 | E16: 10 | F16: 0.45 | G16: 2.5 | K16: Oct | L16: 0.7 | M16: 4.4 | N16: 0.7 | O16: 2.5
A17: Nov | B17: 30 | C17: 0.35 | D17: 0.9 | E17: 10 | F17: 0.3 | G17: 0.6 | K17: Nov | L17: 0.4 | M17: 0.9 | N17: 0.4 | O17: 0.6
A18: Dec | B18: 30 | C18: 0.35 | D18: 0.9 | E18: 10 | F18: 0.25 | G18: 0.5 | K18: Dec | L18: 0.4 | M18: 0.9 | N18: 0.3 | O18: 0.5
K19: Annual | L19: =AVERAGE(L7:L18) -> 0.3583333333 | M19: =MAX(M7:M18) -> 4.4 | N19: =AVERAGE(N7:N18) -> 0.3083333333 | O19: =MAX(O7:O18) -> 2.5
J21: =+A6 -> 2021 | K21: mg/Nm3 | L21: Monthly 1/2 hourly mean | M21: Monthly 1/2 hourly maximum | N21: Monthly daily mean | O21: Monthly daily maximum
J22: A2 | K22: Jan | L22: 0.3 | M22: 0.4 | N22: 0.3 | O22: 0.3
K23: Feb | L23: 0.3 | M23: 0.5 | N23: 0.2 | O23: 0.3
K24: Mar | L24: 0.3 | M24: 1.7 | N24: 0.2 | O24: 0.3
K25: Apr | L25: 0.3 | M25: 0.4 | N25: 0.2 | O25: 0.3
K26: May | L26: 0.3 | M26: 0.4 | N26: 0.2 | O26: 0.3
K27: Jun | L27: 0.3 | M27: 0.3 | N27: 0.2 | O27: 0.3
K28: Jul | L28: 0.3 | M28: 0.4 | N28: 0.2 | O28: 0.3
K29: Aug | L29: 0.3 | M29: 0.3 | N29: 0.2 | O29: 0.3
K30: Sep | L30: 0.3 | M30: 0.3 | N30: 0.2 | O30: 0.3
K31: Oct | L31: 0.3 | M31: 0.4 | N31: 0.2 | O31: 0.3
K32: Nov | L32: 0.3 | M32: 0.4 | N32: 0.2 | O32: 0.3
K33: Dec | L33: 0.3 | M33: 0.4 | N33: 0.2 | O33: 0.3
K34: Annual | L34: =AVERAGE(L22:L33) -> 0.3 | M34: =MAX(M22:M33) -> 1.7 | N34: =AVERAGE(N22:N33) -> 0.2083333333 | O34: =MAX(O22:O33) -> 0.3
J36: =+A6 -> 2021 | K36: mg/Nm3 | L36: Monthly 1/2 hourly mean | M36: Monthly 1/2 hourly maximum | N36: Monthly daily mean | O36: Monthly daily maximum
J37: A3 | K37: Jan
K38: Feb
K39: Mar
K40: Apr
K41: May
K42: Jun
K43: Jul
K44: Aug
K45: Sep
K46: Oct
K47: Nov
A48: Comments : | K48: Dec
K49: Annual | L49: =AVERAGE(L37:L48) ->  | M49: =MAX(M37:M48) -> 0 | N49: =AVERAGE(N37:N48) ->  | O49: =MAX(O37:O48) -> 0
J51: =+A6 -> 2021 | K51: mg/Nm3 | L51: Monthly 1/2 hourly mean | M51: Monthly 1/2 hourly maximum | N51: Monthly daily mean | O51: Monthly daily maximum
J52: A4 | K52: Jan
K53: Feb
K54: Mar
K55: Apr
K56: May
K57: Jun
K58: Jul
K59: Aug
K60: Sep
K61: Oct
K62: Nov
K63: Dec
K64: Annual | L64: =AVERAGE(L52:L63) ->  | M64: =MAX(M52:M63) -> 0 | N64: =AVERAGE(N52:N63) ->  | O64: =MAX(O52:O63) -> 0
J66: =+A6 -> 2021 | K66: mg/Nm3 | L66: Monthly 1/2 hourly mean | M66: Monthly 1/2 hourly maximum | N66: Monthly daily mean | O66: Monthly daily maximum
J67: A5 | K67: Jan
K68: Feb
K69: Mar
K70: Apr
K71: May
K72: Jun
K73: Jul
K74: Aug
K75: Sep
K76: Oct
K77: Nov
K78: Dec
K79: Annual | L79: =AVERAGE(L67:L78) ->  | M79: =MAX(M67:M78) -> 0 | N79: =AVERAGE(N67:N78) ->  | O79: =MAX(O67:O78) -> 0

Sheet CO 95% 10 min
A1: =+'Cover Page'!$B$29 -> Annual Performance Report 2021 | E1: =+'Cover Page'!$B$33 -> Staffordshire Energy Recovery Facility
A3: Monitoring of Carbon Monoxide (10-minute avg) | E3: Whole Installation | H3: See Notes in Cell S3 | J3: =+A3 -> Monitoring of Carbon Monoxide (10-minute avg) | O3: Per Combustion Line | Q3: Notes: | S3: Notes:
S4: User to add logic to complete Whole installation, Table A5:H18. From the data in Per Combustion Line, Table K6:Q79, subject to No. of lines installed
A5: mg/Nm3 | B5: 10-minute Reference Periods | F5: Daily Reference Periods
A6: =+'Cover Page'!C39 -> 2021 | B6: 95%ile 10-min avg CO ELV | C6: 95%ile 10-min avg maximum | D6: Monthly CO 10-min avg mean | E6: 10-min avg maximum | F6: Daily CO ELV | G6: Monthly daily mean | H6: Highest daily maximum | K6: =+A6 -> 2021 | L6: mg/Nm3 | M6: 95%ile 10-min avg maximum | N6: Monthly CO 10-min avg mean | O6: 10-min avg maximum | P6: Monthly daily mean | Q6: Monthly daily maximum
A7: Jan | B7: 150 | C7: =MAX(M7,M22) -> 10.1 | D7: =AVERAGE(N7,N22) -> 3.7 | E7: =MAX(O7,O22) -> 513.8 | F7: 50 | G7: =AVERAGE(P7,P22) -> 3.55 | H7: =MAX(Q7,Q22) -> 7.4 | K7: A1 | L7: Jan | M7: 10.1 | N7: 4.1 | O7: 121.4 | P7: 3.9 | Q7: 4.8
A8: Feb | B8: =+B7 -> 150 | C8: =MAX(M8,M23) -> 11.4 | D8: =AVERAGE(N8,N23) -> 3.8 | E8: =MAX(O8,O23) -> 202.9 | F8: =+F7 -> 50 | G8: =AVERAGE(P8,P23) -> 3.75 | H8: =MAX(Q8,Q23) -> 6.8 | L8: Feb | M8: 11.4 | N8: 4.3 | O8: 106.9 | P8: 4.2 | Q8: 6.8
A9: Mar | B9: =+B8 -> 150 | C9: 8 | D9: 3.45 | E9: 321.1 | F9: =+F8 -> 50 | G9: 3.35 | H9: 5.7 | L9: Mar | M9: 6.2 | N9: 4 | O9: 276.6 | P9: 3.9 | Q9: 5.7 | S9: Whole Installation table A5:H18:
A10: Apr | B10: 150 | C10: 12.1 | D10: 3.2 | E10: 229 | F10: 50 | G10: 3.1 | H10: 6.5 | L10: Apr | M10: 10.4 | N10: 3.3 | O10: 50.5 | P10: 3.2 | Q10: 4.3 | S10: Mean: for 10-min and daily periods use average of all operational combustion lines.
A11: May | B11: 150 | C11: 6.4 | D11: 2.75 | E11: 354.3 | F11: 50 | G11: 2.75 | H11: 5.1 | L11: May | M11: 6 | N11: 3.3 | O11: 354.3 | P11: 3.3 | Q11: 5.1
A12: Jun | B12: 150 | C12: 8.9 | D12: =AVERAGE(N12,N27) -> 2.95 | E12: 459.8 | F12: 50 | G12: 2.9 | H12: 8.3 | L12: Jun | M12: 7.1 | N12: 3.1 | O12: 211.6 | P12: 3 | Q12: 5.3
A13: Jul | B13: 150 | C13: 10.5 | D13: 3 | E13: 423.4 | F13: 50 | G13: 2.85 | H13: 5.4 | L13: Jul | M13: 10.5 | N13: 3.4 | O13: 357.7 | P13: 3.2 | Q13: 5.1 | S13: Maximum: for 10-min and daily periods use the highest of all operational combustion lines in any month.
A14: Aug | B14: 150 | C14: 22.9 | D14: 3.05 | E14: 441.1 | F14: 50 | G14: 2.95 | H14: 9.8 | L14: Aug | M14: 4.6 | N14: 3.1 | O14: 260.4 | P14: 3 | Q14: 5.2
A15: Sep | B15: 150 | C15: 17.4 | D15: 3.05 | E15: 382 | F15: 50 | G15: 3 | H15: 8.6 | L15: Sep | M15: 10.3 | N15: 3.2 | O15: 224.8 | P15: 3.2 | Q15: 4.9
A16: Oct | B16: 150 | C16: 9.8 | D16: 3.3 | E16: 320.6 | F16: 50 | G16: 3.2 | H16: 6.7 | L16: Oct | M16: 6.8 | N16: 3.8 | O16: 288.6 | P16: 3.7 | Q16: 5.7
A17: Nov | B17: 150 | C17: 10.2 | D17: 3.45 | E17: 455.2 | F17: 50 | G17: 3.4 | H17: 5.8 | L17: Nov | M17: 9.3 | N17: 3.9 | O17: 188.4 | P17: 3.9 | Q17: 5.1
A18: Dec | B18: 150 | C18: 10.4 | D18: =AVERAGE(N18,N33) -> 3.45 | E18: 574.9 | F18: 50 | G18: 3.45 | H18: 7.3 | L18: Dec | M18: 10.4 | N18: 3.9 | O18: 424.2 | P18: 3.9 | Q18: 6.6
L19: Annual | M19: =AVERAGE(M7:M18) -> 8.591666667 | N19: =AVERAGE(N7:N18) -> 3.616666667 | O19: =MAX(O7:O18) -> 424.2 | P19: =AVERAGE(P7:P18) -> 3.533333333 | Q19: =MAX(Q7:Q18) -> 6.8
K21: =+A6 -> 2021 | L21: mg/Nm3 | M21: 95%ile 10-min avg maximum | N21: Monthly CO 10-min avg mean | O21: 10-min avg maximum | P21: Monthly daily mean | Q21: Monthly daily maximum
K22: A2 | L22: Jan | M22: 6.7 | N22: 3.3 | O22: 513.8 | P22: 3.2 | Q22: 7.4
L23: Feb | M23: 7 | N23: 3.3 | O23: 202.9 | P23: 3.3 | Q23: 4.5
L24: Mar | M24: 8 | N24: 2.9 | O24: 321.1 | P24: 2.8 | Q24: 5.6
L25: Apr | M25: 12.1 | N25: 3.1 | O25: 229 | P25: 3 | Q25: 6.5
L26: May | M26: 6.4 | N26: 2.2 | O26: 215.3 | P26: 2.2 | Q26: 4.8
L27: Jun | M27: 8.9 | N27: 2.8 | O27: 459.8 | P27: 2.8 | Q27: 8.3
L28: Jul | M28: 8.6 | N28: 2.6 | O28: 423.4 | P28: 2.5 | Q28: 5.4
L29: Aug | M29: 22.9 | N29: 3 | O29: 441.1 | P29: 2.9 | Q29: 9.8
L30: Sep | M30: 17.4 | N30: 2.9 | O30: 382 | P30: 2.8 | Q30: 8.6
L31: Oct | M31: 9.8 | N31: 2.8 | O31: 320.6 | P31: 2.7 | Q31: 6.7
L32: Nov | M32: 10.2 | N32: 3 | O32: 455.2 | P32: 2.9 | Q32: 5.8
L33: Dec | M33: 7 | N33: 3 | O33: 574.9 | P33: 3 | Q33: 7.3
L34: Annual | M34: =AVERAGE(M22:M33) -> 10.41666667 | N34: =AVERAGE(N22:N33) -> 2.908333333 | O34: =MAX(O22:O33) -> 574.9 | P34: =AVERAGE(P22:P33) -> 2.841666667 | Q34: =MAX(Q22:Q33) -> 9.8
K36: =+A6 -> 2021 | L36: mg/Nm3 | M36: 95%ile 10-min avg maximum | N36: Monthly CO 10-min avg mean | O36: 10-min avg maximum | P36: Monthly daily mean | Q36: Monthly daily maximum
K37: A3 | L37: Jan
L38: Feb
L39: Mar
L40: Apr
L41: May
L42: Jun
L43: Jul
L44: Aug
L45: Sep
L46: Oct
L47: Nov
A48: Comments : | L48: Dec
A49: Environment Agency explanatory note: The 10-minute average ELV is based on the “95th percentile”. In this case this means that 95% of the 10 minute averages in the relevant 24-hour period (i.e. 137) must be below 150 mg/Nm3, and 5% (i.e. 7) are allowed to be any value above 150 mg/Nm3. Whilst we expect operators to minimise CO emissions at all times, it is perfectly acceptable for the value of the maximum 10-minute average to be above 150 mg/Nm3, provided the 95th percentile ELV has been met for that period. | L49: Annual | M49: =AVERAGE(M37:M48) ->  | O49: =MAX(O37:O48) -> 0 | P49: =AVERAGE(P37:P48) ->  | Q49: =MAX(Q37:Q48) -> 0
K51: =+A6 -> 2021 | L51: mg/Nm3 | M51: 95%ile 10-min avg maximum | N51: Monthly CO 10-min avg mean | O51: 10-min avg maximum | P51: Monthly daily mean | Q51: Monthly daily maximum
K52: A4 | L52: Jan
L53: Feb
L54: Mar
L55: Apr
L56: May
L57: Jun
L58: Jul
L59: Aug
L60: Sep
L61: Oct
L62: Nov
L63: Dec
L64: Annual | M64: =AVERAGE(M52:M63) ->  | O64: =MAX(O52:O63) -> 0 | P64: =AVERAGE(P52:P63) ->  | Q64: =MAX(Q52:Q63) -> 0
K66: =+A6 -> 2021 | L66: mg/Nm3 | M66: 95%ile 10-min avg maximum | N66: Monthly CO 10-min avg mean | O66: 10-min avg maximum | P66: Monthly daily mean | Q66: Monthly daily maximum
K67: A5 | L67: Jan
L68: Feb
L69: Mar
L70: Apr
L71: May
L72: Jun
L73: Jul
L74: Aug
L75: Sep
L76: Oct
L77: Nov
L78: Dec
L79: Annual | M79: =AVERAGE(M67:M78) ->  | O79: =MAX(O67:O78) -> 0 | P79: =AVERAGE(P67:P78) ->  | Q79: =MAX(Q67:Q78) -> 0
